Cogmind - Beta 15 @@@ ROGUE MODE // 2025.05.11 @ 21:54:58 Player: 7604 Result: Destroyed by as-96652 with Assembled Blade Performance ------------- Evolutions (0) 0 Regions Visited (2) 400 Robots Destroyed (36) 180 Value Destroyed (510) 510 Prototype IDs (0) 0 Alien Tech Used (0) 0 Bonus (0) 0 TOTAL SCORE: 1090 Bonus ------- None Cogmind --------- Core Integrity 0/250 Matter 264/300 Energy 230/250 System Corruption 0% Temperature Warm (177) Movement Treading (240) Ox1 Location -10/Mines Parts ------- > --- POWER (1) -------- Ion Engine > --- PROPULSION (2) --- Light Treads Light Treads > --- UTILITY (2) ------ High-capacity Storage Unit Light Armor Plating > --- WEAPON (2) ------- Medium Laser Medium Laser > --- INVENTORY (20) --- Ion Engine Heat Sink Structural Scanner Sensor Array Improved Terrain Scanner Seismic Detector Seismic Detector Seismic Detector Light Armor Plating Light Armor Plating Light Armor Plating Hacking Suite Hacking Suite EM Pulse Gun Grenade Launcher Grenade Launcher Datajack Mining Laser Peak State ------------ > --- POWER ------------ Ion Engine > --- PROPULSION ------- Light Treads Light Treads > --- UTILITY ---------- High-capacity Storage Unit Seismic Detector > --- WEAPON ----------- Assault Rifle Light Assault Rifle > --- INVENTORY -------- Ion Engine Light Treads Heat Sink Large Storage Unit Structural Scanner Improved Terrain Scanner Seismic Detector Seismic Detector Seismic Detector Light Armor Plating Hacking Suite Medium Laser Medium Laser Grenade Launcher Grenade Launcher Mining Laser [Rating: 9] Favorites ----------- Power Ion Engine Engine Ion Engine Propulsion Light Treads Treads Light Treads Utility Seismic Detector Device Seismic Detector Storage High-capacity Storage Unit Protection Light Armor Plating Weapon Light Assault Rifle Energy Gun Medium Laser Ballistic Gun Light Assault Rifle Launcher Grenade Launcher Special Weapon Mining Laser Build | -11 -10 -10 ------- Run | Yrd Mat Min Slots Evolved . | . . . Power . | . . . Propulsion . | . . . Utility . | . . . Weapon . | . . . Parts Attached 22 | 8 9 5 Power 1 | 1 . . Engine 1 | 1 . . Core . | . . . Reactor . | . . . Propulsion 3 | 2 . 1 Treads 3 | 2 . 1 Leg . | . . . Wheel . | . . . Hover . | . . . Flight . | . . . Utility 10 | 3 5 2 Device 4 | 2 1 1 Storage 3 | 1 2 . Processor . | . . . Hackware . | . . . Protection 3 | . 2 1 Artifact . | . . . Weapon 8 | 2 4 2 Energy Gun 3 | . 1 2 Energy Cannon . | . . . Ballistic Gun 2 | 2 . . Ballistic Cannon . | . . . Launcher 2 | . 2 . Special Weapon 1 | . 1 . Impact Weapon . | . . . Slashing Weapon . | . . . Piercing Weapon . | . . . Special Melee Weapon . | . . . Unidentified Prototypes . | . . . Parts Lost 4 | . 2 2 Power . | . . . Propulsion 1 | . . 1 Utility 1 | . 1 . Weapon 2 | . 1 1 Highest Loss Streak 1 | . 1 1 To Critical Strikes . | . . . Average Backups 13 | 3 15 19 Power . | . 1 1 Propulsion . | . . . Utility 8 | 2 9 12 Weapon 3 | . 3 4 Tool/Special . | . . . Unused Backups 11 | . 1 10 Power 1 | . . 1 Propulsion . | . . . Utility 9 | . 1 8 Weapon . | . . . Tool/Special 1 | . . 1 Average Slot Usage (%) 99 | . 99 99 Engine 14 | . 14 14 Treads 27 | . 28 27 Device 13 | . 13 13 Storage 14 | . 14 14 Energy Gun 4 | . 3 15 Ballistic Gun 22 | . 23 12 Peak Build Rating 9 | 8 9 9 Average Rating 8 | 6 8 8 On Entrance 5 | . 8 9 Naked Turns . | . . . Heaviest Build 52 | 14 52 52 Greatest Support 40 | 40 40 40 Greatest Overweight (x) 1 | . 1 1 Average Overweight (x) . | . . 1 Largest Inventory Capacity 20 | 8 20 20 Average Capacity 16 | 7 17 20 Most Carried 20 | 8 20 20 Average Carried 13 | 3 15 19 Final Capacity 20 | 8 20 20 Final Carried 20 | 8 20 18 Class Distribution -------------------- 100% | Mutant Dominant Class ---------------- Mutant | -10/Materials Mutant | -10/Mines Resources | -11 -10 -10 ----------- Run | Yrd Mat Min Matter Collected 903 | 377 515 11 Remotely . | . . . Salvage Created 779 | 181 554 44 Parts 88 | 24 57 7 Haulers Intercepted 2 | . 2 . Recyclers Shooed 1 | 1 . . Parts Field Recycled . | . . . Retrieved Matter . | . . . Parts Self-Destructed . | . . . Prevented . | . . . Kills | -11 -10 -10 ------- Run | Yrd Mat Min Combat Hostiles Destroyed 16 | . 13 3 Guns 14 | . 11 3 AOE 2 | . 2 . Classes Destroyed 7 | 1 6 . Worker 2 | . 2 . Tunneler 10 | 9 1 . Hauler 2 | . 2 . Operator 4 | . 4 . Watcher 2 | . 2 . Swarmer 9 | . 6 3 Grunt 7 | . 7 . Best Kill Streak 3 | 2 3 3 Combat Bots Only 3 | . 3 3 Max Kills in Single Turn 2 | 1 2 1 Gunslinging . | . . . Exploded 1 | . 1 . Melee . | . . . Uniques/NPCs Destroyed . | . . . Combat | -11 -10 -10 -------- Run | Yrd Mat Min Hostile Shots Fired 84 | . 60 24 Missed 23 | . 18 5 Hits 61 | . 42 19 Melee 11 | . . 11 Projectile 50 | . 42 8 Damage Taken 1003 | . 588 415 Core 265 | . 103 162 Absorbed by Shields . | . . . Core Remaining (%) 100 | 100 . . Volleys Fired 118 | 31 71 16 Largest 2 | 2 2 2 Hottest 100 | 40 100 100 Shots Fired 232 | 62 138 32 Gun 224 | 62 130 32 Cannon . | . . . Launcher 5 | . 5 . Special 3 | . 3 . Kinetic 195 | 62 126 7 Thermal 25 | . 7 18 Explosive 5 | . 5 . Electromagnetic 7 | . . 7 Robot Hit Streak 12 | 8 12 4 Robot Miss Streak 5 | 3 5 4 Penetration Max . | . . . Secondary Targets 3 | . 3 . Max Gunslinging Chain 1 | . 1 . Shots Hit Robots 122 | 36 75 11 Core Hits 61 | 16 39 6 Critical Kills 1 | . 1 . Critical Parts Destroyed . | . . . Critical Strikes 4 | . 2 2 Burn 3 | . 1 2 Destroy 1 | . 1 . Melee Attacks . | . . . Impact . | . . . Slashing . | . . . Piercing . | . . . Sneak Attacks . | . . . Combat Hostiles . | . . . Follow-up Attacks . | . . . Damage Inflicted 1542 | 379 1041 122 Guns 1293 | 379 792 122 Cannons . | . . . Explosions 249 | . 249 . Melee . | . . . Ramming . | . . . Kinetic 1146 | 379 754 13 Thermal 125 | . 38 87 Explosive 249 | . 249 . Electromagnetic 22 | . . 22 Impact . | . . . Slashing . | . . . Piercing . | . . . Highest Corruption . | . . . Average Corruption . | . . . Corruption Purged . | . . . Corruption Blocked . | . . . Overload Shots . | . . . Overflow Damage 12 | . 12 . Projectiles . | . . . Explosions 12 | . 12 . Melee . | . . . Knockbacks . | . . . Impact . | . . . Kinetic . | . . . Secondary . | . . . Self-Inflicted Damage 155 | . 155 . Shots 4 | . 4 . Rammed . | . . . Targets Rammed . | . . . Kicked . | . . . Crushed . | . . . Highest Temperature 226 | . 61 226 Average Temperature 55 | . 18 100 Received Heat Transfer 153 | . 153 . Siege Activations . | . . . Martial Activations . | . . . Shielding Activations . | . . . Robots Disrupted . | . . . Combat Hostiles . | . . . Robots Corrupted . | . . . Combat Hostiles . | . . . Parts Fried . | . . . Impact Corruptions . | . . . Robots Melted . | . . . Combat Hostiles . | . . . Parts Melted . | . . . Heat Transferred 592 | . 185 407 Parts Sabotaged . | . . . Parts Stolen . | . . . Parts Stripped . | . . . Power Chain Reactions . | . . . Alert | -11 -10 -10 ------- Run | Yrd Mat Min Maximum Alert Level . | . . . Low Security (%) 100 | 100 100 100 Level 1 . | . . . Level 2 . | . . . Level 3 . | . . . Level 4 . | . . . Level 5 . | . . . High Security . | . . . Max Security . | . . . Peak Influence 164 | 10 164 64 Initial 44 | . . 44 Average 65 | . 87 25 Influence Increases 690 | 45 575 70 Destroy 0b10 Robot/C 320 | . 260 60 Destroy 0b10 Robot/NC 100 | 45 55 . Destroy Leader 78 | . 68 10 Select Force Hacks 60 | . 60 . Disable Machine 15 | . 15 . Destroy Structure 42 | . 42 . Lose Combat Pursuer 75 | . 75 . Influence Decreases 690 | 45 460 185 Entered New Map 71 | . . 71 Time Decay 589 | 45 440 104 Lost Part 30 | . 20 10 Squads Dispatched 6 | . 6 . Investigation 2 | . 2 . Extermination . | . . . Reinforcement 4 | . 4 . Assault . | . . . Garrison . | . . . Intercept . | . . . Searches Triggered . | . . . Construction Impeded . | . . . Haulers Reinforced . | . . . Active Scanning Responses . | . . . Cargo Convoy Interrupts . | . . . Stealth | -11 -10 -10 --------- Run | Yrd Mat Min Distress Signals 2 | . 2 . Communications Jammed . | . . . Distress Signals . | . . . Times Spotted 34 | . 29 5 Peak Tracking Total 3 | . 3 3 Tactical Retreats 3 | . 3 . Traps | -11 -10 -10 ------- Run | Yrd Mat Min Traps Triggered . | . . . Indirectly . | . . . Trap Hack Attempts . | . . . Triggered . | . . . Disarmed . | . . . Reprogrammed . | . . . Reused . | . . . Traps Extracted . | . . . Installed . | . . . Triggered . | . . . Machines | -11 -10 -10 ---------- Run | Yrd Mat Min Machines Disabled 1 | . 1 . Max in Single Turn 1 | . 1 . Machines Repaired . | . . . Machines Dismantled . | . . . Machines Sabotaged . | . . . Overloaded Fab Kills . | . . . Hacking | -11 -10 -10 --------- Run | Yrd Mat Min Machines Accessed 5 | . 5 . Terminals 3 | . 3 . Fabricators . | . . . Repair Stations . | . . . Recycling Units 2 | . 2 . Scanalyzers . | . . . Garrison Access . | . . . Total Hacks 17 | . 17 . Successful 7 | . 7 . Failed 10 | . 10 . Catastrophic . | . . . Database Lockouts . | . . . Manual 14 | . 14 . Terminals 12 | . 12 . Fabricators . | . . . Repair Stations . | . . . Recycling Units 5 | . 5 . Scanalyzers . | . . . Garrison Access . | . . . Terminal Hacks 1 | . 1 . Robot Analysis 1 | . 1 . Fabricator Hacks . | . . . Repair Station Hacks . | . . . Recycling Unit Hacks 1 | . 1 . Retrieve Components 1 | . 1 . Scanalyzer . | . . . Garrison Access Hacks . | . . . Unauthorized Hacks 5 | . 5 . Terminals 3 | . 3 . Botnet 1 | . 1 . Skim 2 | . 2 . Fabricators . | . . . Repair Stations . | . . . Recycling Units 2 | . 2 . Tunnel 2 | . 2 . Scanalyzers . | . . . Garrison Access . | . . . Data Cores Recovered . | . . . Used . | . . . Hacking Detections 5 | . 5 . Full Trace Events . | . . . Feedback Events . | . . . Feedback Blocked . | . . . Robot Schematics Acquired . | . . . Robots Built . | . . . Authchips . | . . . Time . | . . . Total Robot Build Rating . | . . . Part Schematics Acquired . | . . . Parts Built . | . . . Authchips . | . . . Time . | . . . Total Part Build Rating . | . . . Parts Repaired . | . . . Time . | . . . Parts Recycled . | . . . Recycled Matter . | . . . Retrieved Matter . | . . . Retrieved Components 9 | . 9 . Parts Scanalyzed . | . . . Part Schematics Acquired . | . . . Parts Damaged . | . . . Bothacking | -11 -10 -10 ------------ Run | Yrd Mat Min Used RIF Installer . | . . . Robots Hacked . | . . . Non-combat . | . . . Combat . | . . . Robot Hacks Applied . | . . . Relay Couplers Released . | . . . Fabnet Peak Effective % . | . . . Robots Rewired . | . . . Allies Hacked . | . . . Hacks Repelled . | . . . Allies | -11 -10 -10 -------- Run | Yrd Mat Min Total Allies . | . . . Largest Group . | . . . Highest-Rated Group . | . . . Highest-Rated Ally . | . . . Total Orders . | . . . Ally Attacks . | . . . Total Damage . | . . . Kills . | . . . Allies Corrupted . | . . . Allies Melted . | . . . Intel | -11 -10 -10 ------- Run | Yrd Mat Min Active Infowar (turns) 2750 | 370 2113 267 Sensors 104 | . . 104 Seismic 2646 | 370 2113 163 Robot Analysis Total 1 | . 1 . Derelict Logs Recovered 1 | . . 1 Drone Launches . | . . . Drone Recoveries . | . . . Exploration | -11 -10 -10 ------------- Run | Yrd Mat Min Turns Passed 3146 | 613 2254 279 Spaces Moved 1262 | 320 849 93 Core 5 | 5 . . Treads 1257 | 315 849 93 Legs . | . . . Wheels . | . . . Hover . | . . . Flight . | . . . Fastest Speed 50 | 50 160 240 Average Speed 203 | 158 216 240 Slowest Speed 240 | 160 240 240 Overloaded Moves . | . . . Propulsion Burnouts . | . . . Robots Hopped . | . . . Potential Cave-ins . | . . . Cave-ins Triggered . | . . . Exploration Rate (%) 46 | 14 98 27 Regions Visited 2 Branch Regions 1 Pre-discovered Areas 2 | . 2 . Known Exits Taken . | . . . Unknown Exits Taken 2 | 1 1 . Scrap Searched . | . . . Spaces Dug 9 | . 9 . Terrain Destroyed 49 | . 49 . Melee . | . . . Projectile 3 | . 3 . AOE 46 | . 46 . Terrain Rammed . | . . . Walls Destroyed . | . . . Machines Disabled . | . . . Actions | -11 -10 -10 --------- Run | Yrd Mat Min Total 1615 | 367 1129 119 Wait 177 | 2 170 5 Move 1260 | 319 848 93 Hop . | . . . Pick Up 23 | 7 16 . Fast Attach 7 | 7 . . Attach 4 | . 2 2 Detach . | . . . Swap 22 | 1 18 3 Drop 4 | . 4 . Fire 118 | 31 71 16 Melee . | . . . Ram . | . . . Kick . | . . . Crush . | . . . Escape Stasis . | . . . Rewire . | . . . Trap . | . . . Miscellaneous . | . . . Route ------- -11/Scrapyard -10/Materials (discovered 5 exits: [*Mat x3] / [*Min] / [*Sub]) -10/Mines History --------- Turn | Location | Event 12 | -11/Scrapyard | Discovered new exit (range 16) 614 | -11/Scrapyard | Entered Materials 615 | -10/Materials | Build established: Mutant 615 | -10/Materials | Met a group of wandering Federalists 793 | -10/Materials | Discovered new exit (range 15) 960 | -10/Materials | Discovered new exit (range 4) 1963 | -10/Materials | Discovered new exit (range 16) 2557 | -10/Materials | Discovered new exit (range 15) 2669 | -10/Materials | Discovered new exit (range 6) 2868 | -10/Materials | Entered Mines 3013 | -10/Mines | Assembled infested the area 3018 | -10/Mines | Assisted by a Guerilla fighting off Assembled 3117 | -10/Mines | Core integrity fell below 50% 3130 | -10/Mines | Core integrity fell below 20% 3147 | -10/Mines | Destroyed by as-96652 with Assembled Blade Last Messages --------------- 02944_ S-10 Pest suffers critical hit (Burn). 02944_ S-10 Pest destroyed. 02948_ Lgt. Treads destroyed. 02950_ S-10 Pest suffers critical hit (Burn). 02950_ S-10 Pest destroyed. 02954_ Acquired 11 matter. 03005_ Acquired derelict log, extracted data. Data stored: Storage entrances (x1). 03013_ ALERT: Infestation in the mines, dispatching Demolisher response squad. 03018_ A derelict emerges from the shadows: "You need to get out of here! I've been tracking a group of Assembled to figure out where they're coming from, and they're closing on this area, come on!" 03045_ P4-UBO(h): "I'll hold them off! Go on ahead or try to find another way!" 03114_ K-01 Serf collects debris. 03114_ Lgt. Assault Rifle destroyed. 03117_ K-01 Serf collects debris. Map ----- +----------------------------------------------------+ | ???????????# ?????????????????????????????????? | | ????????### ?????????????????????????????????? | | ???????? #?????????????????????????????????? | | ????????? ##????????????????????????????????? | | ????????? #????????????????????????????????? | | ????????? #????????????????????????????????? | | ?????????# ##???????????????????????????????? | | ????????## ######??????????????????????????? | | ????????# ##?????????????????????????? | | ????????# #?????????????????????????? | | ????????# #?????????????????????????? | | ???????## #?????? ? ?????????????????? | | ?????### #????????? =% ???????????????? | | ????## ###????????? ! ??????????????? | | ????# ##??????????# ???????????????? | | ???# ##????????### #???????????????? | | ???# # #????????## #???????????????? | | ???# ## #????????# #????????????????? | | ???# ?# #????????? ?????????????????? | | ???# ?# #????????? ??????????????????? | | ??# ??# #####????? ???????????????????? | | ?? ??# #?????# ????????????????????? | | ?## ##??###### #?????# #?????????????????????? | | ??###?????????# #?# ### #?????????????????????? | | ??????????????# ### a #?????????????????????? | | ????????????### ######@ #?????????????????????? | | ???????????## #???# #?????????????????????? | | ???????????# #???# ##????????????????????? | | ???????????# #??## #????????????????????? | | ???????????## #### ##????????????????????? | | ????????????## ## ##?????????????????????? | | ?????????????# ##??????????????????????? | | ????????????## #???????????????????????? | | ????????????# #?####??????????????????? | | ????????#####= #### ##?????????????????? | | ?########*%==% #####?# ##????????????????? | | ?# ##*### ##?????# #????????????????? | | ?# ##=#### ##??????# #????????????????? | | ?# ##[ ####???????# ##???????????????? | | ?# """ ## ## ############ ##??????????????? | | ?# """ ## #??????????????? | | ?# """ ################### #??????????????? | | ?# #?????????????????# #??????????????? | | ?#######??????????????????# #??????????????? | | ???????????????????????????## ##??????????????? | | ?????????????????????????????###???????????????? | | ???????????????????????????????????????????????? | | | | | | | +----------------------------------------------------+ Best States ------------- Heat Dissipation 25 Energy Generation 10 Energy Capacity 250 Matter Stores 300 Matter Capacity 300 Sight Range 16 Robot Scan Range 14 Terrain Scan Density 10 Armor Coverage 150 Evasion (%) 40 Recoil Reduction 2 Item Schematics ----------------- None Robot Schematics ------------------ None Fabricated ------------ Nothing Repaired ---------- Nothing Alien Tech Used ----------------- None Achievements -------------- None Challenges ------------ None Game ------ Seed CobblerLightMantle Manual? 0 Play Time 00:15:25 Cumulative 368.8 hours Start 2025.05.11 @ 21:40:15 End 2025.05.11 @ 21:54:58 Sessions 1 Manual Loads 0 Difficulty Rogue Special Mode None Game No. 179 Rogue 116 Adventurer 63 Explorer 0 Win Type - Total 8 Types 7/0/0/1/0/0/0/0/0/0 Lore% 84 Gallery% 75 Achievement% 63 Wizard Run 0 Options --------- Layout 2 ASCII 0 Keyboard 1 Movement Numpad Keybinds 0 Fullscreen 1 Font 24/Terminus Map View 50x44 Zoom Use 0% Tactical HUD 1 Map Filters NONE Filters NONE Steam 1 RUN: 5a5f2df4-5519-47d6-acaf-7bcc7cb88081